bitfinex-derivatives/quotes_ETHF0:USTF0_20250106
["timestamp","ask_amount","ask_price","bid_price","bid_amount"]
[1736143867452,1.3479,3675.3,3675.2,40.8]
[1736143867953,1.3479,3675.3,3675.2,41.04494]
[1736143868858,1.3479,3675.3,3675.2,40.8]
[1736143869163,1.3479,3675.3,3675.2,41.04494]
[1736143869361,4.7944,3675.8,3675.5,0.24492]
[1736143869665,0.24492,3675.6,3675.3,0.24493]
[1736143869853,3.54649068,3675.7,3675.2,40.8]
[1736143870056,0.24491,3675.6,3675.3,0.24493]
[1736143870561,3.79140068,3675.7,3675.3,0.24493]
[1736143871560,0.24491,3675.6,3675.2,40.8]
[1736143871754,3.54649068,3675.7,3675.2,40.8]
[1736143871960,0.24493,3675.5,3675.2,41.04494]
[1736143873562,0.24493,3675.4,3675.2,41.04494]
[1736143873949,0.24492,3675.5,3675.2,41.04494]
[1736143874357,3.54649068,3675.7,3675.3,0.24493]
[1736143874563,3.2078,3675.8,3675.4,1.3269]
[1736143874861,1.59901,3675.7,3675.4,1.57182]
[1736143876260,0.24491,3675.6,3675.4,1.57182]
[1736143876460,0.24493,3675.4,3675.2,40.8]
[1736143876763,0.24493,3675.3,3675.2,40.8]
[1736143877662,0.24493,3675.4,3675.2,40.8]
[1736143877865,0.24493,3675.5,3675.2,41.04494]
[1736143878167,0.24493,3675.5,3675.3,0.24493]
[1736143878363,0.24493,3675.5,3675.3,1.4174]
[1736143880660,0.24493,3675.4,3675.3,1.4174]
[1736143880962,0.24493,3675.5,3675.3,1.4174]
[1736143881267,0.24493,3675.4,3675.3,1.4174]
[1736143882762,0.24493,3675.3,3675.2,40.8]
[1736143883267,1.3607,3675.6,3675.0,2.7112]
[1736143883463,1.3607,3675.6,3674.9,3.2078]
[1736143883464,2.16459068,3675.1,3674.9,3.2078]
[1736143883768,0.24498,3674.6,3674.5,2.77]
[1736143883969,0.24498,3674.6,3674.5,1.3857]
[1736143884164,2.16459068,3674.7,3674.4,4.25627573]
[1736143884369,1.67569,3674.5,3674.4,4.25627573]
[1736143884569,1.67569,3674.5,3674.3,50.41101423]
[1736143884570,0.24499,3674.4,3674.3,3.2078]
[1736143885370,1.4307,3674.5,3674.3,3.2078]
[1736143885571,1.67569,3674.5,3674.3,3.2078]
[1736143885874,0.24499,3674.4,3674.3,3.2078]
[1736143886674,1.57969,3674.4,3674.3,3.2078]
[1736143889678,1.67569,3674.5,3674.3,3.2078]
[1736143890276,0.24499,3674.4,3674.3,3.2078]
[1736143890870,0.24499,3674.4,3674.1,3.01291]
[1736143891478,0.24501,3674.2,3674.1,2.7679]
[1736143893575,0.24501,3674.2,3673.9,3.45282]
[1736143893775,0.24501,3674.1,3673.9,3.45282]
[1736143893972,2.40960068,3674.1,3674.0,40.8]
[1736143894179,1.4146,3674.3,3673.9,3.2078]
[1736143894384,0.24501,3674.2,3673.9,3.45282]
[1736143894584,0.24501,3674.2,3673.7,2.7805]
[1736143894585,0.24501,3674.2,3674.0,0.24502]
[1736143894781,0.24501,3674.2,3673.9,0.24502]
[1736143895083,1.4146,3674.3,3673.8,40.8]
[1736143895278,2.16459068,3674.4,3673.8,40.8]
[1736143895582,0.24501,3674.2,3673.9,0.24502]
[1736143896479,2.16459068,3674.4,3674.0,0.24501]
[1736143896684,0.24501,3674.2,3674.0,0.24501]
[1736143897280,0.245,3674.3,3674.1,0.24501]
[1736143897481,0.245,3674.3,3674.2,1.3122]
[1736143898979,2.16459068,3674.4,3674.2,1.3122]
[1736143899285,2.40959068,3674.4,3674.3,1.3978]
[1736143899486,2.16459068,3674.4,3674.3,1.3978]
[1736143899684,2.40958068,3674.4,3674.3,1.3978]
[1736143900382,0.24499,3674.4,3674.3,1.3978]
[1736143902182,0.24501,3674.2,3673.9,0.24502]
[1736143902386,0.24501,3674.2,3674.0,0.24502]
[1736143902583,0.245,3674.3,3674.1,0.24501]
[1736143903083,5.37239068,3674.7,3673.9,1.3309]
[1736143903388,3.45278,3674.7,3674.4,0.24499]
[1736143903590,0.24498,3674.6,3674.5,2.723]
[1736143904383,0.24497,3674.8,3674.5,2.96798]
[1736143904585,2.73,3674.9,3674.5,2.723]
[1736143904784,0.24498,3674.7,3674.5,2.723]
[1736143904985,2.73,3674.9,3674.5,1.3309]
[1736143905191,0.24498,3674.6,3674.5,1.3309]
[1736143905786,2.73,3674.9,3674.5,1.3309]
[1736143906088,0.24498,3674.7,3674.5,1.3309]
[1736143906288,2.16459068,3675.0,3674.5,2.7106]
[1736143906479,1.62577,3674.8,3674.5,2.95559]
[1736143906680,0.24498,3674.7,3674.5,2.95559]
[1736143907386,1.3808,3674.8,3674.5,2.95559]
[1736143907592,1.62577,3674.8,3674.5,2.95559]
[1736143909192,1.3808,3674.8,3674.5,2.7106]
[1736143909395,1.3686,3674.9,3674.5,2.7106]
[1736143909591,0.24497,3674.9,3674.6,0.24498]
[1736143910691,0.24497,3674.9,3674.5,2.7106]
[1736143910888,0.24497,3674.9,3674.6,0.24498]
[1736143911090,0.24497,3674.9,3674.5,2.7106]
[1736143911291,0.24497,3674.9,3674.7,0.24497]
[1736143911492,0.24497,3674.9,3674.8,1.4102]
[1736143918704,2.16459068,3675.0,3674.6,0.24498]
[1736143919001,0.24497,3674.8,3674.6,0.24498]
[1736143920001,0.24496,3674.9,3674.7,0.24497]
[1736143920394,0.24496,3674.9,3674.5,1.3309]
[1736143920702,0.24496,3675.0,3674.8,0.24497]
[1736143920999,0.24496,3675.0,3674.9,2.7304]
[1736143921194,1.22288263,3675.0,3674.9,43.5304]
[1736143922099,1.22288263,3675.0,3674.9,42.1032]
[1736143923093,0.24496,3675.0,3674.9,42.1032]
[1736143923395,0.24496,3675.0,3674.9,1.3032]
[1736143926296,0.24497,3674.9,3674.6,0.24498]
[1736143926604,1.68327,3674.9,3674.7,0.24497]
[1736143926905,1.68327,3674.9,3674.6,4.50124573]
[1736143927102,1.68327,3674.9,3674.6,4.25627573]
[1736143927300,1.68327,3674.9,3674.7,0.24497]
[1736143927603,0.24497,3674.8,3674.6,4.50125573]
[1736143927798,0.24497,3674.8,3674.6,4.25627573]
[1736143928000,1.36,3674.7,3674.6,4.25627573]
[1736143928295,1.36,3674.7,3674.6,4.50125573]
[1736143928492,1.36,3674.7,3674.6,0.24498]
[1736143928896,3.81150201,3674.9,3674.5,5.58717573]
[1736143929102,3.81150201,3674.9,3674.7,0.24497]
[1736143929103,2.37320201,3674.9,3674.7,0.24497]
[1736143929707,0.24496,3674.9,3674.7,4.50124573]
[1736143930699,3.48824201,3675.0,3674.7,4.25627573]
[1736143930901,0.24497,3674.8,3674.6,0.24498]
[1736143931103,2.12824201,3674.9,3674.5,5.58717573]
[1736143931404,0.24497,3674.8,3674.6,0.24498]
[1736143932607,2.12824201,3674.8,3674.5,5.58717573]
[1736143932807,2.12824201,3674.8,3674.5,4.50126573]
[1736143932808,2.37321201,3674.8,3674.5,4.50126573]
[1736143933009,0.24498,3674.6,3674.5,4.25627573]
[1736143934008,0.24499,3674.5,3674.4,4.25627573]
[1736143934203,3.04049,3674.5,3674.4,4.25627573]
[1736143935609,3.04049,3674.5,3674.3,42.1489]
[1736143937706,0.24499,3674.4,3674.3,42.1489]
[1736143938511,3.04049,3674.5,3674.3,42.3939]
[1736143939312,5.16873201,3674.5,3674.3,42.3939]
[1736143939713,0.24499,3674.4,3674.3,42.1489]
[1736143939917,5.16873201,3674.5,3674.3,42.1489]
[1736143940410,5.16873201,3674.5,3674.3,40.8]
[1736143941318,0.24499,3674.4,3674.3,40.8]
[1736143941519,2.12824201,3674.5,3674.3,40.8]
[1736143941717,2.37323201,3674.5,3674.3,40.8]
[1736143942821,0.24499,3674.4,3674.3,40.8]
[1736143945023,1.22322508,3674.4,3674.3,40.8]
[1736143945421,0.245,3674.3,3674.2,4.25627573]
[1736143945627,1.5443,3674.3,3674.2,4.25627573]
[1736143946525,0.24501,3674.1,3674.0,6.40321423]
[1736143946725,1.22324508,3674.1,3674.0,6.40321423]
[1736143947834,0.24507,3673.3,3673.2,5.86640423]
[1736143948323,0.24507,3673.3,3673.2,46.66640423]
[1736143948822,0.24507,3673.2,3673.1,1.3271]
[1736143949330,0.24509,3673.0,3672.9,43.5449]
[1736143949729,0.24509,3673.0,3672.9,42.1355]
[1736143950819,0.24509,3673.0,3672.9,40.8]
[1736143960532,0.24509,3673.0,3672.2,0.24514]
[1736143960533,0.24513,3672.4,3672.1,3.2078]
[1736143960833,0.24513,3672.4,3672.3,42.2178]
[1736143961434,1.3306,3672.7,3672.2,1.3175]
[1736143961741,0.24513,3672.3,3672.2,1.3175]
[1736143962037,0.24513,3672.3,3672.2,42.1175]
[1736143962537,0.24513,3672.3,3672.2,1.3175]
[1736143964233,5.37704504,3672.8,3672.2,1.3175]
[1736143964438,3.2078,3672.8,3672.2,1.3175]
[1736143964639,3.4529,3672.8,3672.5,0.24512]
[1736143964831,3.4529,3672.8,3672.4,0.24512]
[1736143965138,0.24511,3672.7,3672.4,0.24512]
[1736143966233,0.2451,3672.8,3672.5,0.24512]
[1736143967134,2.16924504,3673.1,3672.5,0.24512]
[1736143967330,2.16924504,3672.8,3672.3,0.24513]
[1736143967537,0.24512,3672.5,3672.2,1.56264]
[1736143968040,2.16924504,3672.8,3672.2,1.56264]
[1736143968229,0.24512,3672.5,3672.2,1.56264]
[1736143968433,0.24512,3672.5,3672.2,1.3175]
[1736143968633,0.24512,3672.5,3672.3,0.24513]
[1736143969236,0.24512,3672.6,3672.3,0.24513]
[1736143969437,0.24512,3672.6,3672.2,1.3175]
[1736143969635,0.24512,3672.6,3672.4,0.24513]
[1736143969942,2.16924504,3672.8,3672.2,1.3175]
[1736143970340,0.24511,3672.6,3672.2,1.3175]
[1736143970642,0.24512,3672.5,3672.3,0.24513]
[1736143970833,2.16924504,3672.8,3672.2,1.3175]
[1736143971032,0.24511,3672.7,3672.4,0.24512]
[1736143971234,2.41434504,3672.8,3672.5,0.24512]
[1736143971434,0.24511,3672.7,3672.5,0.24512]
[1736143971729,3.2078,3672.9,3672.2,1.3175]
[1736143972035,0.24508,3673.1,3672.8,0.2451]
[1736143972335,3.2078,3673.3,3672.9,4.0684]
[1736143972642,3.18835817,3673.7,3673.1,3.2078]
[1736143972841,2.37061211,3673.8,3673.1,3.2078]
[1736143973037,2.37061211,3673.8,3673.2,40.8]
[1736143973038,2.12557211,3673.8,3673.2,40.8]
[1736143973238,0.24505,3673.7,3673.2,40.8]
[1736143973439,2.41429504,3673.7,3673.4,0.24506]
[1736143973831,2.41429504,3673.7,3673.5,1.3351]
[1736143974043,2.41429504,3673.7,3673.6,1.3924]
[1736143974640,2.16924504,3673.7,3673.6,2.97835]
[1736143974840,2.16924504,3673.7,3673.6,2.7333]
[1736143975040,2.16924504,3673.7,3673.2,40.8]
[1736143975345,0.24507,3673.3,3673.2,40.8]
[1736143975537,2.16924504,3673.7,3673.1,3.2078]
[1736143975840,0.24507,3673.3,3673.1,3.2078]
[1736143976039,2.16924504,3673.7,3673.1,3.2078]
[1736143976342,0.24507,3673.3,3673.1,3.2078]
[1736143976536,0.24507,3673.2,3673.1,3.2078]
[1736143977443,0.24508,3673.1,3673.0,40.8]
[1736143978143,0.24509,3673.0,3672.9,2.8159]
[1736143978640,0.24509,3673.0,3672.9,1.3942]
[1736143980639,2.16924504,3673.1,3672.7,40.8]
[1736143980640,0.2451,3672.8,3672.7,40.8]
[1736143981442,2.16924504,3673.1,3672.6,2.6816]
[1736143981747,0.2451,3672.8,3672.7,1.3387]
[1736143981937,2.16924504,3673.1,3672.7,1.3387]
[1736143982144,0.2451,3672.9,3672.7,1.3387]
[1736143983446,0.2451,3672.8,3672.7,1.3387]
[1736143983642,3.2078,3673.0,3672.6,42.1274]
[1736143983846,0.24511,3672.7,3672.6,42.1274]
[1736143984348,0.24511,3672.7,3672.6,40.8]
[1736143984547,3.2078,3673.0,3672.0,3.2704039]
[1736143984548,2.16924504,3672.8,3672.0,3.2704039]
[1736143984746,4.1539,3672.6,3672.0,3.2704039]
[1736143984936,0.24512,3672.6,3672.0,3.2704039]
[1736143985136,4.2878,3673.0,3672.0,3.2704039]
[1736143985643,0.24512,3672.6,3672.3,0.24513]
[1736143985846,4.2878,3673.0,3672.4,2.7563]
[1736143986042,0.24512,3672.5,3672.4,2.7563]
[1736143986848,0.24513,3672.4,3672.3,1.3582]
[1736143987245,0.24512,3672.5,3672.3,1.3582]
[1736143988250,2.16924504,3672.8,3672.3,1.3582]
[1736143988450,0.24513,3672.4,3672.3,1.3582]
[1736143988948,2.16924504,3672.8,3672.3,1.3582]
[1736143988949,0.24512,3672.5,3672.3,1.3582]
[1736143989352,0.24511,3672.8,3672.4,0.24512]
[1736143989555,0.24511,3672.8,3672.5,0.24512]
[1736143990451,0.24511,3672.7,3672.4,0.24512]
[1736143990646,5.33337211,3673.0,3672.1,40.8]
[1736143990849,0.24511,3672.7,3672.3,0.24513]
[1736143991045,0.24512,3672.6,3672.3,0.24513]
[1736143991349,5.33337211,3673.0,3672.2,4.1485]
[1736143991547,0.24512,3672.6,3672.3,0.24513]
[1736143992147,0.24512,3672.5,3672.3,0.24513]
[1736143992351,0.24512,3672.6,3672.3,0.24513]
[1736143992552,0.24512,3672.5,3672.2,4.39364]
[1736143993152,2.12557211,3672.8,3672.2,4.39364]
[1736143993153,4.29481715,3672.8,3672.2,4.1485]
[1736143993451,4.29481715,3672.8,3672.2,1.4363]
[1736143993452,0.24513,3672.3,3672.2,1.4363]
[1736143995151,2.16924504,3672.5,3672.1,40.8]
[1736143995450,0.24515,3672.1,3672.0,0.0626039]
[1736144002470,2.37072211,3672.1,3672.0,0.0626039]
[1736144003665,0.24515,3672.1,3672.0,0.0626039]
[1736144005973,3.2078,3672.2,3672.0,0.0626039]
[1736144006271,3.45295,3672.2,3672.1,42.2252]
[1736144006472,3.45295,3672.2,3672.1,44.8689]
[1736144006662,2.12090956,3672.3,3672.1,44.8689]
[1736144006868,2.12090956,3672.3,3672.1,45.11404]
[1736144007063,0.24514,3672.2,3672.1,44.8689]
[1736144007972,0.24514,3672.2,3672.1,1.3358]
[1736144008165,0.24515,3672.1,3672.0,0.0626039]
[1736144008674,0.24515,3672.1,3672.0,3.9e-06]
[1736144008873,3.2078,3672.2,3671.3,8.45666704]
[1736144009075,3.2078,3672.2,3671.3,11.66446704]
[1736144009076,0.24519,3671.4,3671.3,11.66446704]
[1736144009271,0.24519,3671.4,3671.3,8.45666704]
[1736144009471,0.24519,3671.4,3671.3,49.25666704]
[1736144009766,0.24519,3671.4,3671.3,40.8]
[1736144010176,0.24519,3671.4,3671.3,44.0078]
[1736144010576,0.24519,3671.5,3671.3,44.0078]
[1736144010778,0.24519,3671.5,3671.4,1.4351]
[1736144011777,2.16924504,3671.6,3671.3,42.209]
[1736144012076,0.24519,3671.4,3671.3,40.8]
[1736144012275,0.24522,3671.0,3670.9,1.313]
[1736144012678,0.24524,3670.7,3670.6,6.41345381]
[1736144012874,3.49448504,3670.7,3670.6,6.41345381]
[1736144013288,2.41448504,3670.7,3670.6,6.41345381]
[1736144013577,3.49448504,3670.7,3670.6,6.41345381]
[1736144013778,0.24526,3670.4,3670.3,3.2078]
[1736144013980,3.24924504,3670.7,3670.3,3.2078]
[1736144014172,2.16924504,3670.4,3669.9,3.2078]
[1736144014379,0.24527,3670.3,3670.0,4.2134]
[1736144014980,2.16924504,3670.4,3670.0,4.2134]
[1736144015290,0.24527,3670.4,3670.0,4.2134]
[1736144015479,2.16924504,3670.4,3670.0,4.2134]
[1736144015680,0.24527,3670.3,3670.1,40.8]
[1736144016385,0.24526,3670.4,3670.1,40.8]
[1736144016786,3.24924504,3670.7,3670.3,3.2078]
[1736144016787,2.16924504,3670.7,3670.3,3.2078]
[1736144016985,1.4016,3670.9,3670.3,3.45307]
[1736144016986,0.24525,3670.6,3670.3,3.45307]
[1736144017287,0.24525,3670.6,3670.3,3.2078]
[1736144017482,0.24525,3670.6,3670.4,40.8]
[1736144018289,2.41448504,3670.7,3670.4,40.8]
[1736144018681,2.16924504,3670.7,3670.4,40.8]
[1736144018891,0.24525,3670.5,3670.4,40.8]
[1736144021381,6.45704504,3671.0,3670.4,40.8]
[1736144021689,0.24525,3670.5,3670.4,40.8]
[1736144023684,4.6003,3670.6,3669.8,3.2078]
[1736144023889,2.16924504,3670.4,3669.8,3.2078]
[1736144024086,0.24529,3670.0,3669.9,40.8]
[1736144026889,0.24529,3670.1,3669.9,40.8]
[1736144027392,0.24529,3670.1,3670.0,2.6338]
[1736144027594,0.24528,3670.2,3670.0,2.6338]
[1736144027788,1.08,3670.3,3670.1,1.3315]
[1736144027989,2.16924504,3670.4,3670.2,0.24527]
[1736144028288,0.24525,3670.6,3670.2,0.24527]
[1736144028891,2.16924504,3670.7,3670.1,1.3315]
[1736144029086,0.24525,3670.6,3670.3,0.24526]
[1736144029289,2.41448504,3670.7,3670.4,0.24526]
[1736144029490,0.24525,3670.6,3670.3,3.45307]
[1736144029882,2.16924504,3671.0,3670.3,3.2078]
[1736144030098,2.41446504,3671.0,3670.7,0.24524]
[1736144030289,2.41446504,3671.0,3670.8,2.95453]
[1736144030594,2.41446504,3671.0,3670.8,2.7093]
[1736144030897,2.41446504,3671.0,3670.9,40.8]
[1736144031596,2.41446504,3671.0,3670.8,2.7093]
[1736144031890,0.24523,3670.9,3670.8,2.7093]
[1736144032095,0.24522,3671.1,3670.8,2.7093]
[1736144032296,0.24521,3671.2,3670.9,0.24523]
[1736144032495,0.24521,3671.2,3670.9,41.04523]
[1736144032696,0.24521,3671.2,3670.7,4.6454]
[1736144032697,2.16924504,3671.0,3670.7,3.2078]
[1736144032893,2.41446504,3671.0,3670.9,2.7246]
[1736144034301,5.37704504,3671.0,3670.3,4.5533]
[1736144034492,2.41449504,3670.6,3670.5,1.3302]
[1736144035393,2.16924504,3670.6,3669.8,6.41345381]
[1736144035600,1.4389,3670.5,3669.9,2.98689]
[1736144035799,0.24528,3670.2,3669.9,2.98689]
[1736144036098,0.24527,3670.3,3670.0,0.24529]
[1736144037500,0.24528,3670.2,3669.8,3.4531]
[1736144037694,0.24528,3670.2,3669.8,3.2078]
[1736144038095,2.16924504,3670.3,3669.9,0.24529]
[1736144038398,0.24528,3670.1,3669.8,3.4531]
[1736144038600,2.16924504,3670.3,3669.8,3.2078]
[1736144038801,0.24528,3670.2,3669.9,0.24529]
[1736144039203,0.24527,3670.2,3669.8,3.2078]
[1736144039390,0.24527,3670.2,3669.9,0.24529]
[1736144040003,2.16924504,3670.3,3669.8,3.2078]
[1736144040194,0.24529,3670.1,3669.8,3.2078]
[1736144040390,1.3716,3670.4,3669.8,3.2078]
[1736144040597,0.24527,3670.3,3670.0,0.24529]
[1736144040798,0.24527,3670.3,3670.1,1.418]
[1736144041000,1.4389,3670.5,3670.1,1.418]
[1736144041201,0.24527,3670.3,3670.1,1.418]
[1736144041396,0.24527,3670.3,3670.2,1.3126]
[1736144042505,0.24527,3670.2,3670.1,1.418]
[1736144043598,0.24527,3670.2,3670.1,42.218]
[1736144044403,1.4297,3670.8,3670.1,42.218]
[1736144044703,2.11931737,3670.9,3670.5,3.2078]
[1736144044906,2.11931737,3670.9,3670.6,2.92325]
[1736144045299,0.24524,3670.8,3670.6,2.678]
[1736144046207,2.36454737,3670.9,3670.6,2.678]
[1736144046404,2.11931737,3670.9,3670.7,1.4279]
[1736144046603,2.16924504,3671.0,3670.7,1.67314]
[1736144046809,2.41446504,3671.0,3670.7,1.67314]
[1736144047108,2.16924504,3671.0,3670.7,1.4279]
[1736144047505,1.61032,3671.1,3670.8,0.24523]
[1736144047710,2.11931737,3671.4,3671.0,3.2078]
[1736144047914,2.11931737,3671.4,3671.3,0.2452]
[1736144048613,2.11931737,3671.4,3671.0,3.2078]
[1736144048909,5.71996241,3671.6,3671.0,3.2078]
[1736144049210,0.2452,3671.3,3671.1,40.8]
[1736144049804,0.2452,3671.4,3671.1,40.8]
[1736144050110,2.11931737,3671.6,3671.2,1.3784]
[1736144050406,2.36450737,3671.6,3671.3,1.6851]
[1736144050608,2.11931737,3671.6,3671.4,0.24519]
[1736144050803,2.11931737,3671.6,3671.3,2.8413]
[1736144051005,2.11931737,3671.6,3671.5,0.24519]
[1736144051304,2.36448737,3671.8,3671.5,0.24519]
[1736144051505,2.36448737,3671.8,3671.3,2.8413]
[1736144051506,2.11931737,3671.8,3671.6,0.24517]
[1736144052013,2.11931737,3671.8,3671.4,3.2078]
[1736144052312,2.11931737,3671.8,3671.7,0.24517]
[1736144052809,2.11931737,3671.9,3671.8,0.24517]
[1736144053009,2.11931737,3671.9,3671.8,3.45297]
[1736144054307,0.24514,3672.2,3671.8,3.2078]
[1736144054499,0.24514,3672.2,3671.9,1.59316]
[1736144054700,0.24514,3672.2,3672.0,1.2989]
[1736144054908,2.36445737,3672.3,3672.0,1.54405]
[1736144055218,0.24514,3672.2,3672.0,1.2989]
[1736144055913,2.36445737,3672.3,3672.0,1.2989]
[1736144056113,2.11931737,3672.3,3672.0,1.2989]
[1736144056411,2.36445737,3672.3,3672.0,1.54405]
[1736144056614,2.11931737,3672.3,3672.1,0.24515]
[1736144057209,2.11931737,3672.3,3672.0,1.2989]
[1736144057405,0.24513,3672.4,3672.0,1.2989]
[1736144057608,0.24513,3672.4,3672.1,0.24514]
[1736144057911,0.24513,3672.3,3672.0,1.54405]
[1736144058712,0.24513,3672.4,3672.1,0.24514]
[1736144058909,4.28856241,3672.5,3672.0,1.2989]
[1736144059116,2.41436504,3672.5,3672.2,0.24514]
[1736144059812,0.24513,3672.4,3672.3,40.8]
[1736144060009,0.24513,3672.4,3672.1,0.24515]
[1736144060406,0.24513,3672.4,3672.2,40.8]
[1736144060607,5.32711737,3672.9,3672.0,1.2989]
[1736144060806,5.57221737,3672.9,3672.6,0.24511]
[1736144061016,2.11931737,3672.9,3672.7,1.53901]
[1736144061517,2.11931737,3672.9,3672.8,1.4095]
[1736144062309,2.11931737,3673.1,3672.8,1.4095]
[1736144062814,0.24509,3672.9,3672.8,1.4095]
[1736144063714,3.57494504,3673.2,3672.5,0.24512]
[1736144063917,1.54891,3672.8,3672.5,0.24512]
[1736144064217,0.24511,3672.7,3672.4,3.2078]
[1736144064414,1.3038,3672.8,3672.4,3.2078]
[1736144064716,0.24512,3672.5,3672.4,3.2078]
[1736144065216,0.2451,3672.8,3672.5,0.24512]
[1736144066008,0.2451,3672.8,3672.4,3.2078]
[1736144066215,0.24511,3672.7,3672.4,3.45293]
[1736144066817,2.16924504,3672.9,3672.4,3.2078]
[1736144067118,0.24512,3672.5,3672.4,3.2078]
[1736144068123,0.24512,3672.6,3672.4,3.2078]
[1736144068320,0.24512,3672.5,3672.4,3.2078]
[1736144068721,0.24511,3672.7,3672.4,3.45292]
[1736144069023,0.24511,3672.6,3672.4,3.45292]
[1736144070024,0.24512,3672.5,3672.4,3.2078]
[1736144071527,1.4234,3672.8,3671.7,3.2078]
[1736144071528,2.16924504,3672.6,3671.7,3.2078]
[1736144071734,2.16924504,3672.2,3671.7,3.2078]
[1736144071939,0.24516,3671.9,3671.7,3.2078]
[1736144072234,0.24516,3671.9,3671.8,40.8]
[1736144078944,0.24517,3671.7,3671.6,1.36]
[1736144079341,0.24517,3671.7,3671.6,42.16]
[1736144084443,0.24517,3671.7,3671.6,40.8]
[1736144084853,2.16924504,3671.7,3671.0,1.338]
[1736144085053,0.24521,3671.1,3671.0,1.338]
[1736144085551,0.24521,3671.1,3671.0,42.138]
[1736144088949,0.24522,3671.0,3670.9,3.2078]
[1736144089145,2.16924504,3671.1,3670.7,0.00319665]
[1736144089348,0.24523,3670.8,3670.7,0.00319665]
[1736144095352,0.24523,3670.8,3670.7,40.80319665]
[1736144097753,2.36451737,3671.4,3670.7,40.80319665]
[1736144098060,2.11931737,3671.4,3671.3,0.2452]
[1736144098250,4.25648403,3671.9,3671.8,0.24517]
[1736144098449,4.25648403,3671.9,3671.8,3.45297]
[1736144098649,4.25648403,3671.9,3671.8,44.25297]
[1736144099259,0.24514,3672.3,3671.8,44.0078]
[1736144099450,2.16924504,3672.7,3671.8,44.0078]
[1736144099652,0.24514,3672.2,3671.9,0.24516]
[1736144100256,0.2451,3672.8,3672.5,0.24512]
[1736144100655,3.4529,3672.9,3672.5,0.24512]
[1736144101160,3.2078,3672.9,3672.5,0.24512]
[1736144101362,0.24511,3672.8,3672.6,2.7571]
[1736144102957,0.2451,3672.9,3672.6,3.00221]
[1736144103160,1.4262,3673.4,3672.7,3.2078]
[1736144103361,0.24506,3673.4,3673.0,0.24508]
[1736144103559,0.24507,3673.3,3672.9,0.24509]
[1736144103757,2.16924504,3673.5,3672.9,0.24509]
[1736144103958,0.24508,3673.2,3672.8,0.2451]
[1736144104159,2.16924504,3673.5,3672.9,41.04509]
[1736144104363,0.24507,3673.3,3672.9,41.04509]
[1736144105059,2.16924504,3673.2,3672.7,3.2078]
[1736144105261,2.16924504,3672.9,3672.3,3.2078]
[1736144105462,0.24511,3672.7,3672.3,3.45293]
[1736144105963,0.24511,3672.7,3672.4,4.25880437]
[1736144106263,1.3584,3672.8,3672.4,4.25880437]
[1736144106463,0.24512,3672.5,3672.4,4.25880437]
[1736144107059,1.3586,3672.6,3672.0,2.6237]
[1736144107253,1.3586,3672.6,3672.1,3.2078]
[1736144107459,0.24514,3672.3,3672.1,3.2078]
[1736144107759,1.3586,3672.6,3672.0,2.6237]
[1736144107760,3.52784504,3672.6,3672.0,2.6237]
[1736144108166,0.24515,3672.2,3672.0,2.6237]
[1736144108865,0.24515,3672.1,3672.0,2.6237]
[1736144110469,0.24515,3672.1,3671.7,44.25297]
[1736144110657,0.24515,3672.1,3671.8,1.3546]
[1736144110862,0.24514,3672.2,3671.8,1.59977]
[1736144111165,0.24515,3672.1,3671.8,1.3546]
[1736144112067,0.24516,3672.0,3671.8,1.3546]
[1736144112464,0.24513,3672.4,3671.8,1.3546]
[1736144112672,2.16924504,3672.5,3671.8,1.3546]
[1736144112673,0.24516,3671.9,3671.8,1.3546]
[1736144112864,0.24516,3671.9,3671.7,44.0078]
[1736144113170,2.16924504,3672.5,3671.7,44.0078]
[1736144113362,0.24517,3671.8,3671.7,44.0078]
[1736144113765,0.61282,3672.5,3671.1,6.41345381]
[1736144113766,0.24519,3671.4,3671.1,6.41345381]
[1736144114267,5.37704504,3673.1,3671.3,50.43584941]
[1736144114466,1.3851,3672.7,3672.0,3.2078]
[1736144114673,1.3851,3672.7,3672.4,3.2078]
[1736144115166,3.45288,3673.1,3672.4,3.2078]
[1736144115366,3.2078,3673.1,3672.4,3.2078]
[1736144115569,3.2078,3673.1,3672.9,0.24509]
[1736144115770,3.2078,3673.1,3672.4,3.2078]
[1736144115971,1.3383,3673.2,3672.4,3.2078]
[1736144116268,0.24509,3673.0,3672.6,0.24511]
[1736144117162,0.24509,3673.1,3672.6,0.24511]
[1736144117459,1.3383,3673.2,3672.4,3.2078]
[1736144117657,3.2078,3673.6,3672.8,5.37704504]
[1736144117859,0.24503,3673.9,3673.4,0.24506]
[1736144118062,5.67552,3674.0,3673.5,0.24505]
[1736144118265,0.24504,3673.7,3673.2,3.45287]
[1736144118465,2.16924504,3673.7,3673.2,3.2078]
[1736144118671,0.24506,3673.5,3673.2,3.2078]
[1736144119069,0.24505,3673.6,3673.2,3.2078]
[1736144119275,0.24503,3673.8,3673.3,0.24506]
[1736144119867,0.24505,3673.7,3673.2,3.45287]
[1736144120067,0.24505,3673.7,3673.2,3.2078]
[1736144120276,0.24505,3673.7,3673.3,0.24507]
[1736144120472,0.7942,3673.9,3673.2,3.2078]
[1736144120775,0.7942,3673.9,3673.5,0.24505]
[1736144120974,0.7942,3673.9,3673.6,0.24505]
[1736144121471,0.7942,3673.9,3673.5,40.8]
[1736144121777,0.7942,3673.9,3673.5,41.04505]
[1736144121975,0.7942,3673.9,3673.6,0.24505]
[1736144122272,0.7942,3673.9,3673.7,0.24504]
[1736144122468,0.7942,3673.9,3673.5,40.8]
[1736144122774,1.3543,3674.3,3673.9,0.24503]
[1736144123075,0.24499,3674.5,3674.0,0.24502]
[1736144123269,2.41421504,3674.7,3674.1,0.24501]